[Event "FIDE Grand Swiss 2023"]
[Site "Villa Marina, Douglas, Isle of Man"]
[Date "2023.10.28"]
[Round "4.5"]
[White "Sarana, Alexey"]
[Black "Zhalmakhanov, Ramazan"]
[Result "1/2-1/2"]
[WhiteElo "2682"]
[BlackElo "2447"]
[EventDate "2023.10.25"]
[ECO "D43"]
[PlyCount "96"]
[BlackFideId "13706357"]
[TimeControl "40/100 + 20/50 + 15 + 30s/move"]
[WhiteFideId "24133795"]

1.d4 {[%clk 01:40:45] [%emt 00:00:14]} 1...d5 {[%clk 01:40:19] [%emt 00:00:36]} 
2.c4 {[%clk 01:41:08] [%emt 00:00:12]} 2...c6 {[%clk 01:40:29] [%emt 00:00:20]} 
3.Nf3 {[%clk 01:38:59] [%emt 00:02:39]} 3...Nf6 {[%clk 01:40:45] [%emt
00:00:14]} 4.Nc3 {[%clk 01:39:22] [%emt 00:00:07]} 4...e6 {[%clk 01:40:55] [%emt
00:00:20]} 5.Bg5 {[%clk 01:38:51] [%emt 00:01:01]} 5...h6 {[%clk 01:41:02] [%emt
00:00:24]} 6.Bxf6 {[%clk 01:36:02] [%emt 00:03:19]} 6...Qxf6 {[%clk 01:41:19]
[%emt 00:00:12]} 7.Qb3 {[%clk 01:36:26] [%emt 00:00:06]} 7...Nd7 {[%clk
01:35:25] [%emt 00:06:24]} 8.e4 {[%clk 01:35:29] [%emt 00:01:27]} 8...dxe4 
{[%clk 01:14:47] [%emt 00:21:07]} 9.Nxe4 {[%clk 01:35:39] [%emt 00:00:21]} 
9...Qf5 {[%clk 01:14:40] [%emt 00:00:37]} 10.Bd3 {[%clk 01:34:49] [%emt
00:01:20]} 10...Qa5+ {[%clk 01:14:09] [%emt 00:01:02]} 11.Nc3 {[%clk 01:34:52]
[%emt 00:00:26]} 11...Bb4 {[%clk 01:11:38] [%emt 00:03:01]} 12.O-O {[%clk
01:29:47] [%emt 00:05:36]} 12...Bxc3 {[%clk 01:10:27] [%emt 00:01:41]} 13.bxc3 
{[%clk 01:29:12] [%emt 00:01:05]} 13...O-O {[%clk 01:10:26] [%emt 00:00:30]} 
14.Rfe1 {[%clk 01:24:34] [%emt 00:05:08]} 14...c5 {[%clk 01:01:23] [%emt
00:09:34]} 15.Rad1 {[%clk 01:00:10] [%emt 00:24:54]} 15...Rd8 {[%clk 00:57:41]
[%emt 00:04:11]} 16.Bb1 {[%clk 00:56:28] [%emt 00:04:12]} 16...cxd4 {[%clk
00:48:23] [%emt 00:09:49]} 17.cxd4 {[%clk 00:50:50] [%emt 00:06:08]} 17...Nf6 
{[%clk 00:47:54] [%emt 00:00:58]} 18.Re3 {[%clk 00:47:39] [%emt 00:03:40]} 
18...Bd7 {[%clk 00:42:24] [%emt 00:06:02]} 19.Ne5 {[%clk 00:47:16] [%emt
00:00:53]} 19...Bc6 {[%clk 00:40:54] [%emt 00:02:00]} 20.h3 {[%clk 00:45:29]
[%emt 00:02:16]} 20...Rd6 {[%clk 00:37:15] [%emt 00:04:09]} 21.Qa3 {[%clk
00:28:46] [%emt 00:17:14]} 21...Qxa3 {[%clk 00:31:05] [%emt 00:06:40]} 22.Rxa3 
{[%clk 00:28:54] [%emt 00:00:21]} 22...Kf8 {[%clk 00:13:37] [%emt 00:17:58]} 
23.f3 {[%clk 00:27:00] [%emt 00:02:24]} 23...Rad8 {[%clk 00:11:20] [%emt
00:02:48]} 24.Rad3 {[%clk 00:27:20] [%emt 00:00:10]} 24...Nd7 {[%clk 00:09:19]
[%emt 00:02:31]} 25.Nxd7+ {[%clk 00:23:39] [%emt 00:04:11]} 25...R6xd7 {[%clk
00:08:57] [%emt 00:00:51]} 26.Kf2 {[%clk 00:23:10] [%emt 00:00:59]} 26...g5 
{[%clk 00:06:41] [%emt 00:02:46]} 27.Ke3 {[%clk 00:23:11] [%emt 00:00:29]} 
27...f5 {[%clk 00:06:40] [%emt 00:00:32]} 28.Bc2 {[%clk 00:23:20] [%emt
00:00:20]} 28...Ke7 {[%clk 00:06:10] [%emt 00:00:59]} 29.Bb3 {[%clk 00:23:47]
[%emt 00:00:04]} 29...b5 {[%clk 00:05:05] [%emt 00:01:36]} 30.g3 {[%clk
00:22:58] [%emt 00:01:19]} 30...bxc4 {[%clk 00:04:13] [%emt 00:01:22]} 31.Bxc4 
{[%clk 00:23:27] [%emt 00:00:01]} 31...Kf6 {[%clk 00:03:46] [%emt 00:00:57]} 
32.Rc1 {[%clk 00:20:03] [%emt 00:03:54]} 32...Ba8 {[%clk 00:02:01] [%emt
00:02:14]} 33.Rcc3 {[%clk 00:19:30] [%emt 00:01:03]} 33...f4+ {[%clk 00:01:07]
[%emt 00:01:25]} 34.gxf4 {[%clk 00:19:55] [%emt 00:00:04]} 34...gxf4+ {[%clk
00:01:35] [%emt 00:00:03]} 35.Kxf4 {[%clk 00:20:22] [%emt 00:00:03]} 35...Rxd4+ 
{[%clk 00:02:02] [%emt 00:00:03]} 36.Ke3 {[%clk 00:20:43] [%emt 00:00:08]} 
36...Rxd3+ {[%clk 00:01:20] [%emt 00:01:13]} 37.Bxd3 {[%clk 00:21:11] [%emt
00:00:02]} 37...Bd5 {[%clk 00:01:08] [%emt 00:00:41]} 38.a4 {[%clk 00:20:29]
[%emt 00:01:12]} 38...Rd7 {[%clk 00:00:46] [%emt 00:00:53]} 39.a5 {[%clk
00:20:53] [%emt 00:00:06]} 39...Rg7 {[%clk 00:00:38] [%emt 00:00:37]} 40.a6 
{[%clk 00:20:10] [%emt 00:01:14]} 40...Ke5 {[%clk 00:00:55] [%emt 00:00:13]} 
41.Be2 {[%clk 00:19:50] [%emt 00:00:49]} 41...Kd6 {[%clk 00:42:10] [%emt
00:09:15]} 42.Rc8 {[%clk 01:09:10] [%emt 00:01:10]} 42...Rg3 {[%clk 00:33:34]
[%emt 00:09:06]} 43.Rh8 {[%clk 01:08:22] [%emt 00:01:18]} 43...Rxh3 {[%clk
00:32:25] [%emt 00:01:38]} 44.Rh7 {[%clk 01:08:49] [%emt 00:00:04]} 44...Rh4 
{[%clk 00:31:49] [%emt 00:01:06]} 45.Rxa7 {[%clk 01:09:14] [%emt 00:00:05]} 
45...Ra4 {[%clk 00:32:11] [%emt 00:00:08]} 46.Rh7 {[%clk 01:09:21] [%emt
00:00:23]} 46...Ra3+ {[%clk 00:31:44] [%emt 00:00:57]} 47.Kf4 {[%clk 01:09:37]
[%emt 00:00:13]} 47...Ra4+ {[%clk 00:31:43] [%emt 00:00:31]} 48.Kg3 {[%clk
01:09:58] [%emt 00:00:10]} 48...Ra2 {[%clk 00:30:45] [%emt 00:01:27]} 1/2-1/2

[Event "FIDE Grand Swiss 2023"]
[Site "Villa Marina, Douglas, Isle of Man"]
[Date "2023.10.28"]
[Round "4.6"]
[White "Tabatabaei, M. Amin"]
[Black "Nakamura, Hikaru"]
[Result "0-1"]
[WhiteElo "2685"]
[BlackElo "2780"]
[EventDate "2023.10.25"]
[ECO "D30"]
[PlyCount "88"]
[BlackFideId "2016192"]
[TimeControl "40/100 + 20/50 + 15 + 30s/move"]
[WhiteFideId "12521213"]

1.d4 {[%clk 01:40:47] [%emt 00:00:11]} 1...d5 {[%clk 01:40:42] [%emt 00:00:18]} 
2.c4 {[%clk 01:40:42] [%emt 00:00:36]} 2...e6 {[%clk 01:41:06] [%emt 00:00:07]} 
3.Nf3 {[%clk 01:40:55] [%emt 00:00:16]} 3...c5 {[%clk 01:41:08] [%emt 00:00:29]} 
4.cxd5 {[%clk 01:40:53] [%emt 00:00:32]} 4...exd5 {[%clk 01:41:32] [%emt
00:00:06]} 5.g3 {[%clk 01:41:08] [%emt 00:00:14]} 5...Nc6 {[%clk 01:41:47] [%emt
00:00:15]} 6.Bg2 {[%clk 01:41:16] [%emt 00:00:22]} 6...Nf6 {[%clk 01:42:12]
[%emt 00:00:05]} 7.O-O {[%clk 01:41:29] [%emt 00:00:17]} 7...Be7 {[%clk
01:42:40] [%emt 00:00:02]} 8.dxc5 {[%clk 01:41:24] [%emt 00:00:35]} 8...Bxc5 
{[%clk 01:43:05] [%emt 00:00:05]} 9.a3 {[%clk 01:41:36] [%emt 00:00:19]} 
9...Ne4 {[%clk 01:42:52] [%emt 00:00:42]} 10.Nfd2 {[%clk 01:35:45] [%emt
00:06:22]} 10...f5 {[%clk 01:41:02] [%emt 00:02:20]} 11.b4 {[%clk 01:27:14]
[%emt 00:09:01]} 11...Be7 {[%clk 01:30:24] [%emt 00:11:07]} 12.Bb2 {[%clk
01:19:31] [%emt 00:08:14]} 12...Bf6 {[%clk 01:30:19] [%emt 00:00:35]} 13.Bxf6 
{[%clk 01:09:04] [%emt 00:10:57]} 13...Qxf6 {[%clk 01:30:15] [%emt 00:00:33]} 
14.Nb3 {[%clk 01:09:22] [%emt 00:00:13]} 14...O-O {[%clk 01:19:15] [%emt
00:11:30]} 15.e3 {[%clk 01:09:33] [%emt 00:00:19]} 15...Be6 {[%clk 01:05:42]
[%emt 00:14:03]} 16.N1d2 {[%clk 01:04:22] [%emt 00:05:41]} 16...Ne5 {[%clk
01:06:04] [%emt 00:00:07]} 17.Nf3 {[%clk 00:57:16] [%emt 00:07:37]} 17...Nc4 
{[%clk 01:06:25] [%emt 00:00:08]} 18.Qd4 {[%clk 00:56:58] [%emt 00:00:48]} 
18...Qe7 {[%clk 01:03:43] [%emt 00:03:12]} 19.Rfc1 {[%clk 00:52:48] [%emt
00:04:40]} 19...Bf7 {[%clk 01:03:09] [%emt 00:01:04]} 20.h4 {[%clk 00:52:46]
[%emt 00:00:33]} 20...a6 {[%clk 00:53:27] [%emt 00:10:12]} 21.Ne1 {[%clk
00:51:39] [%emt 00:01:36]} 21...Rad8 {[%clk 00:51:43] [%emt 00:02:14]} 22.Nd3 
{[%clk 00:51:22] [%emt 00:00:47]} 22...h6 {[%clk 00:49:58] [%emt 00:02:16]} 
23.a4 {[%clk 00:51:05] [%emt 00:00:47]} 23...b6 {[%clk 00:47:00] [%emt
00:03:27]} 24.a5 {[%clk 00:49:49] [%emt 00:01:46]} 24...b5 {[%clk 00:46:14]
[%emt 00:01:16]} 25.Rc2 {[%clk 00:42:40] [%emt 00:07:40]} 25...Rd6 {[%clk
00:44:57] [%emt 00:01:47]} 26.Bf3 {[%clk 00:41:18] [%emt 00:01:50]} 26...Qe8 
{[%clk 00:42:24] [%emt 00:03:04]} 27.Re1 {[%clk 00:33:43] [%emt 00:08:05]} 
27...Bh5 {[%clk 00:41:22] [%emt 00:01:32]} 28.Bg2 {[%clk 00:33:46] [%emt
00:00:28]} 28...g5 {[%clk 00:36:05] [%emt 00:05:46]} 29.hxg5 {[%clk 00:25:53]
[%emt 00:08:23]} 29...hxg5 {[%clk 00:36:26] [%emt 00:00:09]} 30.f4 {[%clk
00:21:43] [%emt 00:04:40]} 30...Qg6 {[%clk 00:23:52] [%emt 00:13:04]} 31.Ne5 
{[%clk 00:20:57] [%emt 00:01:16]} 31...Qg7 {[%clk 00:24:08] [%emt 00:00:14]} 
32.Nxc4 {[%clk 00:19:22] [%emt 00:02:05]} 32...dxc4 {[%clk 00:23:47] [%emt
00:00:51]} 33.Qxg7+ {[%clk 00:19:44] [%emt 00:00:09]} 33...Kxg7 {[%clk 00:24:14]
[%emt 00:00:03]} 34.Nd4 {[%clk 00:18:09] [%emt 00:02:04]} 34...Nxg3 {[%clk
00:24:36] [%emt 00:00:09]} 35.fxg5 {[%clk 00:16:12] [%emt 00:02:27]} 35...f4 
{[%clk 00:23:54] [%emt 00:01:12]} 36.Kf2 {[%clk 00:01:54] [%emt 00:14:48]} 
36...Bg6 {[%clk 00:17:20] [%emt 00:07:03]} 37.Rc3 {[%clk 00:01:25] [%emt
00:01:00]} 37...Nh5 {[%clk 00:17:24] [%emt 00:00:24]} 38.Nf3 {[%clk 00:01:27]
[%emt 00:00:29]} 38...Ng3 {[%clk 00:12:40] [%emt 00:05:15]} 39.Nd4 {[%clk
00:01:29] [%emt 00:00:28]} 39...Ne4+ {[%clk 00:09:03] [%emt 00:04:06]} 40.Bxe4 
{[%clk 00:01:54] [%emt 00:00:06]} 40...Bxe4 {[%clk 00:09:31] [%emt 00:00:02]} 
41.Nf3 {[%clk 00:40:13] [%emt 00:12:10]} 41...Bxf3 {[%clk 00:52:53] [%emt
00:07:08]} 42.Kxf3 {[%clk 00:40:35] [%emt 00:00:09]} 42...fxe3+ {[%clk 00:53:21]
[%emt 00:00:02]} 43.Kg4 {[%clk 00:36:24] [%emt 00:04:36]} 43...Rd4+ {[%clk
00:53:29] [%emt 00:00:27]} 44.Kh3 {[%clk 00:33:38] [%emt 00:03:12]} 44...Re8 
{[%clk 00:53:18] [%emt 00:00:45]} 0-1

[Event "FIDE Grand Swiss 2023"]
[Site "Villa Marina, Douglas, Isle of Man"]
[Date "2023.10.28"]
[Round "4.7"]
[White "Abasov, Nijat"]
[Black "Firouzja, Alireza"]
[Result "0-1"]
[WhiteElo "2679"]
[BlackElo "2777"]
[EventDate "2023.10.25"]
[ECO "E00"]
[PlyCount "129"]
[BlackFideId "12573981"]
[TimeControl "40/100 + 20/50 + 15 + 30s/move"]
[WhiteFideId "13402960"]

1.d4 {[%clk 01:40:58] [%emt 00:00:01]} 1...Nf6 {[%clk 01:40:53] [%emt 00:00:07]} 
2.Nf3 {[%clk 01:41:21] [%emt 00:00:07]} 2...d5 {[%clk 01:40:58] [%emt 00:00:25]} 
3.c4 {[%clk 01:41:43] [%emt 00:00:08]} 3...e6 {[%clk 01:41:17] [%emt 00:00:12]} 
4.g3 {[%clk 01:42:07] [%emt 00:00:05]} 4...Bb4+ {[%clk 01:41:32] [%emt
00:00:16]} 5.Bd2 {[%clk 01:42:28] [%emt 00:00:08]} 5...Be7 {[%clk 01:41:55]
[%emt 00:00:08]} 6.Bg2 {[%clk 01:42:51] [%emt 00:00:06]} 6...O-O {[%clk
01:42:13] [%emt 00:00:12]} 7.O-O {[%clk 01:43:10] [%emt 00:00:10]} 7...Nbd7 
{[%clk 01:42:33] [%emt 00:00:10]} 8.Qc2 {[%clk 01:41:45] [%emt 00:01:55]} 
8...c6 {[%clk 01:42:52] [%emt 00:00:12]} 9.Bf4 {[%clk 01:40:48] [%emt 00:01:26]} 
9...a5 {[%clk 01:42:49] [%emt 00:00:33]} 10.h4 {[%clk 01:37:19] [%emt 00:03:59]} 
10...a4 {[%clk 01:42:11] [%emt 00:01:09]} 11.a3 {[%clk 01:25:13] [%emt
00:12:36]} 11...h6 {[%clk 01:36:23] [%emt 00:06:18]} 12.Nc3 {[%clk 01:17:30]
[%emt 00:08:13]} 12...dxc4 {[%clk 01:24:06] [%emt 00:12:47]} 13.e4 {[%clk
01:16:43] [%emt 00:01:17]} 13...b5 {[%clk 01:11:03] [%emt 00:13:34]} 14.Rad1 
{[%clk 01:12:23] [%emt 00:04:49]} 14...Bb7 {[%clk 01:04:14] [%emt 00:07:20]} 
15.Bh3 {[%clk 01:05:17] [%emt 00:07:35]} 15...c5 {[%clk 00:41:31] [%emt
00:23:14]} 16.dxc5 {[%clk 01:00:16] [%emt 00:05:30]} 16...Qc8 {[%clk 00:37:01]
[%emt 00:05:01]} 17.Bd6 {[%clk 00:46:15] [%emt 00:14:31]} 17...Re8 {[%clk
00:37:13] [%emt 00:00:18]} 18.Nd4 {[%clk 00:43:07] [%emt 00:03:37]} 18...Nxc5 
{[%clk 00:37:21] [%emt 00:00:23]} 19.Bxe7 {[%clk 00:41:01] [%emt 00:02:36]} 
19...Rxe7 {[%clk 00:37:44] [%emt 00:00:07]} 20.e5 {[%clk 00:37:39] [%emt
00:03:52]} 20...Nfd7 {[%clk 00:36:06] [%emt 00:02:08]} 21.f4 {[%clk 00:34:26]
[%emt 00:03:43]} 21...Nd3 {[%clk 00:36:14] [%emt 00:00:23]} 22.Ndxb5 {[%clk
00:34:51] [%emt 00:00:05]} 22...Qc5+ {[%clk 00:35:12] [%emt 00:01:32]} 23.Kh2 
{[%clk 00:35:17] [%emt 00:00:03]} 23...Rb8 {[%clk 00:31:30] [%emt 00:04:12]} 
24.Nd6 {[%clk 00:33:49] [%emt 00:01:58]} 24...Bc6 {[%clk 00:29:53] [%emt
00:02:07]} 25.Rb1 {[%clk 00:34:13] [%emt 00:00:06]} 25...Nb6 {[%clk 00:26:36]
[%emt 00:03:47]} 26.Bg2 {[%clk 00:33:16] [%emt 00:01:26]} 26...Bxg2 {[%clk
00:25:59] [%emt 00:01:08]} 27.Qxg2 {[%clk 00:33:31] [%emt 00:00:14]} 27...Nd5 
{[%clk 00:24:41] [%emt 00:01:49]} 28.Qe2 {[%clk 00:30:46] [%emt 00:03:15]} 
28...Nxc3 {[%clk 00:19:18] [%emt 00:05:53]} 29.bxc3 {[%clk 00:31:10] [%emt
00:00:06]} 29...Rb3 {[%clk 00:19:41] [%emt 00:00:07]} 30.Qe4 {[%clk 00:26:42]
[%emt 00:04:58]} 30...Qd5 {[%clk 00:12:39] [%emt 00:07:32]} 31.Qxc4 {[%clk
00:26:13] [%emt 00:00:58]} 31...Qxc4 {[%clk 00:12:22] [%emt 00:00:48]} 32.Nxc4 
{[%clk 00:26:40] [%emt 00:00:03]} 32...Rc7 {[%clk 00:11:27] [%emt 00:01:25]} 
33.Nd2 {[%clk 00:17:51] [%emt 00:09:18]} 33...Rbxc3 {[%clk 00:06:57] [%emt
00:05:01]} 34.Rf3 {[%clk 00:18:11] [%emt 00:00:10]} 34...Rd7 {[%clk 00:03:29]
[%emt 00:03:59]} 35.Kh3 {[%clk 00:15:13] [%emt 00:03:27]} 35...Rxa3 {[%clk
00:03:07] [%emt 00:00:52]} 36.h5 {[%clk 00:12:36] [%emt 00:03:06]} 36...Ra2 
{[%clk 00:02:58] [%emt 00:00:39]} 37.Ne4 {[%clk 00:12:00] [%emt 00:01:07]} 
37...a3 {[%clk 00:02:17] [%emt 00:01:12]} 38.Nd6 {[%clk 00:08:26] [%emt
00:04:03]} 38...Rd2 {[%clk 00:02:37] [%emt 00:00:09]} 39.Nc4 {[%clk 00:06:50]
[%emt 00:02:07]} 39...Re2 {[%clk 00:01:55] [%emt 00:01:12]} 40.Nxa3 {[%clk
00:05:13] [%emt 00:02:08]} 40...Nf2+ {[%clk 00:01:48] [%emt 00:00:36]} 41.Kh4 
{[%clk 00:02:53] [%emt 00:02:48]} 41...Ne4 {[%clk 00:40:08] [%emt 00:12:13]} 
42.Rfb3 {[%clk 00:44:05] [%emt 00:09:18]} 42...Rh2+ {[%clk 00:34:01] [%emt
00:06:36]} 43.Kg4 {[%clk 00:44:27] [%emt 00:00:08]} 43...Nd2 {[%clk 00:32:53]
[%emt 00:01:38]} 44.R1b2 {[%clk 00:38:05] [%emt 00:06:52]} 44...f5+ {[%clk
00:31:20] [%emt 00:02:02]} 45.exf6 {[%clk 00:38:29] [%emt 00:00:06]} 45...gxf6 
{[%clk 00:31:45] [%emt 00:00:05]} 46.Rxd2 {[%clk 00:34:10] [%emt 00:04:49]} 
46...Rhxd2 {[%clk 00:30:09] [%emt 00:02:07]} 47.Re3 {[%clk 00:34:32] [%emt
00:00:08]} 47...R7d3 {[%clk 00:28:48] [%emt 00:01:51]} 48.Nc4 {[%clk 00:34:51]
[%emt 00:00:11]} 48...Rxe3 {[%clk 00:28:58] [%emt 00:00:20]} 49.Nxe3 {[%clk
00:35:17] [%emt 00:00:03]} 49...Rd3 {[%clk 00:24:23] [%emt 00:05:06]} 50.Kf3 
{[%clk 00:34:18] [%emt 00:01:29]} 50...f5 {[%clk 00:20:13] [%emt 00:04:40]} 
51.Kf2 {[%clk 00:34:30] [%emt 00:00:17]} 51...Rd2+ {[%clk 00:20:16] [%emt
00:00:28]} 52.Kf3 {[%clk 00:34:54] [%emt 00:00:06]} 52...Rd3 {[%clk 00:19:41]
[%emt 00:01:06]} 53.Kf2 {[%clk 00:35:19] [%emt 00:00:05]} 53...Kg7 {[%clk
00:19:03] [%emt 00:01:09]} 54.Nc4 {[%clk 00:35:31] [%emt 00:00:17]} 54...Kf6 
{[%clk 00:19:13] [%emt 00:00:19]} 55.Ne5 {[%clk 00:35:46] [%emt 00:00:15]} 
55...Rd5 {[%clk 00:19:26] [%emt 00:00:17]} 56.Ng6 {[%clk 00:35:39] [%emt
00:00:38]} 56...Ra5 {[%clk 00:18:50] [%emt 00:01:06]} 57.Kg2 {[%clk 00:36:01]
[%emt 00:00:07]} 57...Kf7 {[%clk 00:18:04] [%emt 00:01:16]} 58.Kh3 {[%clk
00:35:33] [%emt 00:00:58]} 58...Ra2 {[%clk 00:16:22] [%emt 00:02:13]} 59.Ne5+ 
{[%clk 00:35:21] [%emt 00:00:41]} 59...Kf6 {[%clk 00:16:09] [%emt 00:00:43]} 
60.Nd7+ {[%clk 00:35:34] [%emt 00:00:16]} 60...Ke7 {[%clk 00:15:53] [%emt
00:00:47]} 61.Ne5 {[%clk 00:35:57] [%emt 00:00:06]} 61...Rc2 {[%clk 00:10:34]
[%emt 00:05:50]} 62.Ng6+ {[%clk 00:35:15] [%emt 00:01:11]} 62...Kd6 {[%clk
00:10:34] [%emt 00:00:32]} 63.Ne5 {[%clk 00:35:37] [%emt 00:00:07]} 63...Kd5 
{[%clk 00:09:55] [%emt 00:01:10]} 64.Nf7 {[%clk 00:34:47] [%emt 00:01:20]} 
64...Rc7 {[%clk 00:09:39] [%emt 00:00:46]} 65.Ne5 {[%clk 00:34:29] [%emt
00:00:46]} 0-1

[Event "FIDE Grand Swiss 2023"]
[Site "Villa Marina, Douglas, Isle of Man"]
[Date "2023.10.28"]
[Round "4.8"]
[White "Wojtaszek, Radoslaw"]
[Black "Giri, Anish"]
[Result "1/2-1/2"]
[WhiteElo "2668"]
[BlackElo "2760"]
[EventDate "2023.10.25"]
[ECO "D11"]
[PlyCount "61"]
[BlackFideId "24116068"]
[TimeControl "40/100 + 20/50 + 15 + 30s/move"]
[WhiteFideId "1118358"]

1.d4 {[%clk 01:40:57] [%emt 00:00:02]} 1...d5 {[%clk 01:40:54] [%emt 00:00:07]} 
2.c4 {[%clk 01:41:20] [%emt 00:00:07]} 2...c6 {[%clk 01:41:22] [%emt 00:00:03]} 
3.Nf3 {[%clk 01:41:42] [%emt 00:00:07]} 3...Nf6 {[%clk 01:41:49] [%emt
00:00:04]} 4.e3 {[%clk 01:42:05] [%emt 00:00:07]} 4...Bg4 {[%clk 01:41:10] [%emt
00:01:09]} 5.Qb3 {[%clk 01:39:18] [%emt 00:03:17]} 5...Qb6 {[%clk 01:41:12]
[%emt 00:00:28]} 6.Ne5 {[%clk 01:36:48] [%emt 00:03:01]} 6...Bf5 {[%clk
01:41:22] [%emt 00:00:19]} 7.cxd5 {[%clk 01:35:56] [%emt 00:01:23]} 7...Qxb3 
{[%clk 01:40:18] [%emt 00:01:34]} 8.axb3 {[%clk 01:34:41] [%emt 00:01:44]} 
8...Nxd5 {[%clk 01:40:46] [%emt 00:00:02]} 9.Bd3 {[%clk 01:34:59] [%emt
00:00:12]} 9...Bxd3 {[%clk 01:40:43] [%emt 00:00:34]} 10.Nxd3 {[%clk 01:35:23]
[%emt 00:00:05]} 10...e6 {[%clk 01:41:06] [%emt 00:00:08]} 11.Bd2 {[%clk
01:35:34] [%emt 00:00:18]} 11...Na6 {[%clk 01:41:30] [%emt 00:00:07]} 12.Ke2 
{[%clk 01:34:39] [%emt 00:01:24]} 12...Ndb4 {[%clk 01:41:52] [%emt 00:00:08]} 
13.Nxb4 {[%clk 01:28:22] [%emt 00:06:47]} 13...Nxb4 {[%clk 01:42:11] [%emt
00:00:11]} 14.Na3 {[%clk 01:28:48] [%emt 00:00:04]} 14...Nd5 {[%clk 01:39:37]
[%emt 00:03:05]} 15.Nc4 {[%clk 01:27:33] [%emt 00:01:45]} 15...h5 {[%clk
01:39:45] [%emt 00:00:22]} 16.Rhd1 {[%clk 01:17:53] [%emt 00:10:11]} 16...f6 
{[%clk 01:30:03] [%emt 00:10:11]} 17.e4 {[%clk 01:12:16] [%emt 00:06:08]} 
17...Nc7 {[%clk 01:29:58] [%emt 00:00:35]} 18.Bf4 {[%clk 01:12:34] [%emt
00:00:11]} 18...Nb5 {[%clk 01:29:53] [%emt 00:00:36]} 19.d5 {[%clk 01:11:59]
[%emt 00:01:05]} 19...exd5 {[%clk 01:11:18] [%emt 00:19:05]} 20.exd5 {[%clk
01:12:11] [%emt 00:00:18]} 20...Bc5 {[%clk 01:10:22] [%emt 00:01:26]} 21.dxc6 
{[%clk 00:40:34] [%emt 00:32:07]} 21...bxc6 {[%clk 01:10:35] [%emt 00:00:17]} 
22.Rac1 {[%clk 00:30:52] [%emt 00:10:11]} 22...Nd4+ {[%clk 00:58:58] [%emt
00:12:07]} 23.Kf1 {[%clk 00:31:13] [%emt 00:00:09]} 23...O-O-O {[%clk 00:59:21]
[%emt 00:00:07]} 24.Na5 {[%clk 00:28:10] [%emt 00:03:34]} 24...Bb6 {[%clk
00:58:54] [%emt 00:00:57]} 25.Nxc6 {[%clk 00:28:30] [%emt 00:00:09]} 25...Nxc6 
{[%clk 00:59:20] [%emt 00:00:04]} 26.Rxc6+ {[%clk 00:28:55] [%emt 00:00:06]} 
26...Kb7 {[%clk 00:59:49] [%emt 00:00:02]} 27.Rcd6 {[%clk 00:29:04] [%emt
00:00:20]} 27...Rxd6 {[%clk 00:59:45] [%emt 00:00:34]} 28.Rxd6 {[%clk 00:29:28]
[%emt 00:00:06]} 28...Rd8 {[%clk 00:56:11] [%emt 00:04:03]} 29.Rxd8 {[%clk
00:25:40] [%emt 00:04:18]} 29...Bxd8 {[%clk 00:56:37] [%emt 00:00:04]} 30.Ke2 
{[%clk 00:26:05] [%emt 00:00:05]} 30...Kc6 {[%clk 00:57:01] [%emt 00:00:07]} 
31.Kd3 {[%clk 00:26:29] [%emt 00:00:05]} 1/2-1/2